[Event "*** Titled Tuesday Blitz"]
[Site "Chess.com"]
[Date "2021.03.02"]
[Round "7"]
[White "whogeeyao"]
[Black "PavelShkapenko"]
[Result "0-1"]
[WhiteElo "2379"]
[BlackElo "2672"]
[TimeControl "180+1"]
[EndTime "11:15:31 PST"]
[Termination "PavelShkapenko won by resignation"]

1. e4 {[%clk 0:03:00.9]} 1... e5 {[%clk 0:02:59.1]} 2. Nf3 {[%clk 0:03:00.5]}
2... Nc6 {[%clk 0:02:59]} 3. Bb5 {[%clk 0:03:00.9]} 3... Bc5 {[%clk 0:02:58.7]}
4. O-O {[%clk 0:03:00.6]} 4... f5 {[%clk 0:02:58.6]} 5. exf5 {[%clk 0:02:59.9]}
5... e4 {[%clk 0:02:56.2]} 6. Qe2 {[%clk 0:02:59.8]} 6... Qe7 {[%clk 0:02:53.5]}
7. Ne1 {[%clk 0:02:45]} 7... Nd4 {[%clk 0:02:51.8]} 8. Qh5+ {[%clk 0:02:40.7]}
8... Kf8 {[%clk 0:02:37.9]} 9. Ba4 {[%clk 0:02:37.8]} 9... Nf6 {[%clk
0:02:36.8]} 10. Qd1 {[%clk 0:02:31]} 10... d5 {[%clk 0:02:35]} 11. d3 {[%clk
0:02:22.7]} 11... Bxf5 {[%clk 0:02:29.4]} 12. dxe4 {[%clk 0:02:17.7]} 12... dxe4
{[%clk 0:02:13.8]} 13. Nc3 {[%clk 0:02:03.9]} 13... Rd8 {[%clk 0:02:13.2]} 14.
Bd2 {[%clk 0:01:57.5]} 14... Bg4 {[%clk 0:01:55.2]} 15. Qb1 {[%clk 0:01:49.7]}
15... Be2 {[%clk 0:01:52.7]} 16. h3 {[%clk 0:01:38.7]} 16... Bxf1 {[%clk
0:01:43.3]} 17. Kxf1 {[%clk 0:01:39.6]} 17... Qe5 {[%clk 0:01:37.4]} 18. Kg1
{[%clk 0:01:36.6]} 18... Nf3+ {[%clk 0:01:25.4]} 19. Nxf3 {[%clk 0:01:28.5]}
19... exf3 {[%clk 0:01:25.3]} 20. Qe1 {[%clk 0:01:27.8]} 20... Qg3 {[%clk
0:01:20.4]} 0-1

[Event "*** Titled Tuesday Blitz"]
[Site "Chess.com"]
[Date "2021.03.02"]
[Round "7"]
[White "ShimanovAlex"]
[Black "Kretov_Evgenij"]
[Result "1-0"]
[WhiteElo "2807"]
[BlackElo "2607"]
[TimeControl "180+1"]
[EndTime "11:15:42 PST"]
[Termination "ShimanovAlex won by resignation"]

1. Nf3 {[%clk 0:03:00.9]} 1... c5 {[%clk 0:02:59.9]} 2. b3 {[%clk 0:02:59.2]}
2... Nf6 {[%clk 0:02:59.3]} 3. Bb2 {[%clk 0:02:59.4]} 3... e6 {[%clk 0:02:59.5]}
4. g3 {[%clk 0:02:57.6]} 4... b6 {[%clk 0:02:59.8]} 5. Bg2 {[%clk 0:02:58.2]}
5... Bb7 {[%clk 0:03:00.1]} 6. O-O {[%clk 0:02:58.9]} 6... Be7 {[%clk
0:03:00.4]} 7. c4 {[%clk 0:02:59.1]} 7... O-O {[%clk 0:03:00.5]} 8. Nc3 {[%clk
0:02:59.1]} 8... d6 {[%clk 0:03:00.3]} 9. e3 {[%clk 0:02:58.8]} 9... a6 {[%clk
0:02:52]} 10. d4 {[%clk 0:02:58.8]} 10... cxd4 {[%clk 0:02:51.5]} 11. Nxd4
{[%clk 0:02:59.7]} 11... Qc7 {[%clk 0:02:49.9]} 12. Rc1 {[%clk 0:02:53.5]} 12...
Nbd7 {[%clk 0:02:48.9]} 13. f4 {[%clk 0:02:50.5]} 13... Bxg2 {[%clk 0:02:43.9]}
14. Kxg2 {[%clk 0:02:50.6]} 14... Nc5 {[%clk 0:02:41.4]} 15. Rc2 {[%clk
0:02:41.2]} 15... Nce4 {[%clk 0:02:27.5]} 16. Nxe4 {[%clk 0:02:38.8]} 16... Nxe4
{[%clk 0:02:26.6]} 17. Qf3 {[%clk 0:02:39.7]} 17... Qb7 {[%clk 0:02:24.8]} 18.
f5 {[%clk 0:02:31.5]} 18... e5 {[%clk 0:02:14.7]} 19. Ne2 {[%clk 0:02:30.7]}
19... Rfb8 {[%clk 0:01:52]} 20. Rd1 {[%clk 0:02:14.2]} 20... b5 {[%clk
0:01:47.9]} 21. Nc3 {[%clk 0:02:13.6]} 21... Nxc3 {[%clk 0:01:44]} 22. Qxb7
{[%clk 0:02:13.5]} 22... Rxb7 {[%clk 0:01:44.1]} 23. Rxc3 {[%clk 0:02:14.2]}
23... Kf8 {[%clk 0:01:15.9]} 24. Kf3 {[%clk 0:02:13.4]} 24... Ke8 {[%clk
0:01:14.8]} 25. Ke4 {[%clk 0:02:13.6]} 25... Kd7 {[%clk 0:01:14.9]} 26. c5
{[%clk 0:02:09.8]} 26... Rc7 {[%clk 0:00:53.5]} 27. cxd6 {[%clk 0:02:08.5]}
27... Bxd6 {[%clk 0:00:53.3]} 28. Rcd3 {[%clk 0:02:05.3]} 28... Rc6 {[%clk
0:00:53.5]} 29. Ba3 {[%clk 0:02:04.6]} 1-0

[Event "*** Titled Tuesday Blitz"]
[Site "Chess.com"]
[Date "2021.03.02"]
[Round "7"]
[White "PawnEatingZombie"]
[Black "CM_rui"]
[Result "1-0"]
[WhiteElo "2212"]
[BlackElo "2339"]
[TimeControl "180+1"]
[EndTime "11:15:42 PST"]
[Termination "PawnEatingZombie won by checkmate"]

1. d4 {[%clk 0:03:00.9]} 1... Nf6 {[%clk 0:03:00.2]} 2. c4 {[%clk 0:03:01.4]}
2... e6 {[%clk 0:03:00.3]} 3. Nc3 {[%clk 0:03:01.7]} 3... Bb4 {[%clk 0:03:00.9]}
4. Qc2 {[%clk 0:02:58.5]} 4... O-O {[%clk 0:03:00.9]} 5. e4 {[%clk 0:02:57.5]}
5... d6 {[%clk 0:03:01.2]} 6. Bd3 {[%clk 0:02:56.1]} 6... e5 {[%clk 0:02:59.5]}
7. a3 {[%clk 0:02:54.9]} 7... Bxc3+ {[%clk 0:02:59.3]} 8. bxc3 {[%clk
0:02:55.8]} 8... Nc6 {[%clk 0:02:57.8]} 9. Ne2 {[%clk 0:02:55.7]} 9... b6 {[%clk
0:02:57.7]} 10. O-O {[%clk 0:02:54.4]} 10... Ba6 {[%clk 0:02:58.1]} 11. f4
{[%clk 0:02:54.8]} 11... Na5 {[%clk 0:02:48.9]} 12. Ng3 {[%clk 0:02:53.1]} 12...
Bxc4 {[%clk 0:02:40.6]} 13. fxe5 {[%clk 0:02:45.2]} 13... Bxd3 {[%clk
0:02:37.2]} 14. Qxd3 {[%clk 0:02:44.6]} 14... dxe5 {[%clk 0:02:37.8]} 15. Bg5
{[%clk 0:02:43.7]} 15... Kh8 {[%clk 0:02:03.7]} 16. Nh5 {[%clk 0:02:33.6]} 16...
h6 {[%clk 0:01:00.2]} 17. Bxf6 {[%clk 0:02:28.5]} 17... gxf6 {[%clk 0:00:59]}
18. Rxf6 {[%clk 0:02:11.1]} 18... Kh7 {[%clk 0:00:52.1]} 19. Qe3 {[%clk
0:02:05.6]} 19... Rh8 {[%clk 0:00:25.7]} 20. Qxh6+ {[%clk 0:02:02.9]} 20... Kg8
{[%clk 0:00:25.7]} 21. Qg7# {[%clk 0:02:03.1]} 1-0

[Event "*** Titled Tuesday Blitz"]
[Site "Chess.com"]
[Date "2021.03.02"]
[Round "7"]
[White "romulocardoso"]
[Black "Kaliopa"]
[Result "0-1"]
[WhiteElo "2097"]
[BlackElo "2245"]
[TimeControl "180+1"]
[EndTime "11:15:46 PST"]
[Termination "Kaliopa won by resignation"]

1. e4 {[%clk 0:03:00.9]} 1... c5 {[%clk 0:02:59.5]} 2. Nf3 {[%clk 0:03:01.3]}
2... d6 {[%clk 0:02:59.5]} 3. d4 {[%clk 0:03:01.6]} 3... cxd4 {[%clk 0:03:00.4]}
4. Nxd4 {[%clk 0:03:02.1]} 4... Nf6 {[%clk 0:03:01.1]} 5. Nc3 {[%clk 0:03:01.2]}
5... a6 {[%clk 0:03:01.6]} 6. Be2 {[%clk 0:02:59.8]} 6... e6 {[%clk 0:03:00.7]}
7. O-O {[%clk 0:02:59.1]} 7... Be7 {[%clk 0:03:00.8]} 8. f4 {[%clk 0:02:59.5]}
8... O-O {[%clk 0:03:00.7]} 9. Kh1 {[%clk 0:02:59.7]} 9... Qc7 {[%clk
0:02:53.8]} 10. Be3 {[%clk 0:02:59.4]} 10... b5 {[%clk 0:02:52.9]} 11. g4 {[%clk
0:02:56]} 11... b4 {[%clk 0:02:48.2]} 12. Na4 {[%clk 0:02:49.4]} 12... Nxe4
{[%clk 0:02:45.8]} 13. Bf3 {[%clk 0:02:40.1]} 13... Bb7 {[%clk 0:02:45.4]} 14.
Qd3 {[%clk 0:02:37.8]} 14... Nc5 {[%clk 0:02:28.8]} 15. Nxc5 {[%clk 0:02:18.4]}
15... dxc5 {[%clk 0:02:29.7]} 16. Ne2 {[%clk 0:02:05.5]} 16... c4 {[%clk
0:02:18.4]} 17. Qd1 {[%clk 0:01:55.9]} 17... Rd8 {[%clk 0:02:15.2]} 18. Qe1
{[%clk 0:01:49.8]} 18... Nc6 {[%clk 0:02:03.6]} 19. f5 {[%clk 0:01:38.3]} 19...
exf5 {[%clk 0:01:53.6]} 20. gxf5 {[%clk 0:01:39.2]} 20... Ne5 {[%clk 0:01:53.7]}
21. Bxb7 {[%clk 0:01:26.1]} 21... Qxb7+ {[%clk 0:01:52.7]} 22. Kg1 {[%clk
0:01:23.1]} 22... Nf3+ {[%clk 0:01:51.8]} 23. Rxf3 {[%clk 0:01:23.6]} 23... Qxf3
{[%clk 0:01:52.2]} 24. Nd4 {[%clk 0:01:23.7]} 24... Qg4+ {[%clk 0:01:46]} 25.
Kh1 {[%clk 0:01:21.1]} 25... Bc5 {[%clk 0:01:38.3]} 26. Nc6 {[%clk 0:01:18.2]}
26... Qe4+ {[%clk 0:01:37.1]} 27. Kg1 {[%clk 0:01:16.2]} 27... Bxe3+ {[%clk
0:01:36.6]} 28. Kf1 {[%clk 0:01:16.3]} 28... Qf3+ {[%clk 0:01:35.5]} 0-1

[Event "*** Titled Tuesday Blitz"]
[Site "Chess.com"]
[Date "2021.03.02"]
[Round "7"]
[White "canary2016"]
[Black "jordanasoul"]
[Result "1-0"]
[WhiteElo "1986"]
[BlackElo "2146"]
[TimeControl "180+1"]
[EndTime "11:15:54 PST"]
[Termination "canary2016 won by resignation"]

1. d4 {[%clk 0:03:00.9]} 1... Nf6 {[%clk 0:02:58.7]} 2. Bf4 {[%clk 0:03:00]}
2... g6 {[%clk 0:02:54]} 3. Nc3 {[%clk 0:02:58.6]} 3... Bg7 {[%clk 0:02:48.6]}
4. e3 {[%clk 0:02:56]} 4... O-O {[%clk 0:02:47.5]} 5. Nf3 {[%clk 0:02:55]} 5...
b6 {[%clk 0:02:45]} 6. Be2 {[%clk 0:02:53.8]} 6... Bb7 {[%clk 0:02:44]} 7. O-O
{[%clk 0:02:53.7]} 7... e6 {[%clk 0:02:34.6]} 8. Ne5 {[%clk 0:02:53.1]} 8... d6
{[%clk 0:02:32.9]} 9. Nd3 {[%clk 0:02:52.8]} 9... c5 {[%clk 0:02:31.3]} 10. dxc5
{[%clk 0:02:45.6]} 10... bxc5 {[%clk 0:02:15.5]} 11. Bf3 {[%clk 0:02:43.6]}
11... Nc6 {[%clk 0:02:11.4]} 12. Nb5 {[%clk 0:02:39.5]} 12... e5 {[%clk
0:02:06.7]} 13. Bg5 {[%clk 0:02:25]} 13... a6 {[%clk 0:01:57]} 14. Nc3 {[%clk
0:02:21.6]} 14... Rb8 {[%clk 0:01:46.6]} 15. Nd5 {[%clk 0:02:19.7]} 15... e4
{[%clk 0:01:36.2]} 16. Nxf6+ {[%clk 0:02:15.7]} 16... Bxf6 {[%clk 0:01:34.5]}
17. Bxf6 {[%clk 0:02:15.6]} 17... Qxf6 {[%clk 0:01:34.5]} 18. Bxe4 {[%clk
0:02:15.5]} 18... c4 {[%clk 0:01:33.9]} 19. Nf4 {[%clk 0:02:07.6]} 19... Rfe8
{[%clk 0:01:33.1]} 20. Bxc6 {[%clk 0:01:59.2]} 20... Bxc6 {[%clk 0:01:32.5]} 21.
Rb1 {[%clk 0:01:56.3]} 21... Red8 {[%clk 0:01:29.5]} 22. c3 {[%clk 0:01:55]}
22... Rb7 {[%clk 0:01:26.1]} 23. Qe2 {[%clk 0:01:47.1]} 23... Be4 {[%clk
0:01:24.2]} 24. Rbd1 {[%clk 0:01:45.2]} 24... d5 {[%clk 0:01:24]} 25. Rfe1
{[%clk 0:01:42.4]} 25... Qe5 {[%clk 0:01:21.4]} 26. f3 {[%clk 0:01:40.9]} 26...
Bf5 {[%clk 0:01:20.6]} 27. e4 {[%clk 0:01:39.6]} 27... Be6 {[%clk 0:01:15.1]}
28. Nxd5 {[%clk 0:01:37.6]} 28... Bxd5 {[%clk 0:01:12.6]} 29. exd5 {[%clk
0:01:35.7]} 29... Qxe2 {[%clk 0:01:11.8]} 30. Rxe2 {[%clk 0:01:35.6]} 30... Rxd5
{[%clk 0:01:12.3]} 31. Rxd5 {[%clk 0:01:34.3]} 1-0

[Event "*** Titled Tuesday Blitz"]
[Site "Chess.com"]
[Date "2021.03.02"]
[Round "7"]
[White "davidkalashian"]
[Black "GoltsevDmitry2000"]
[Result "1/2-1/2"]
[WhiteElo "2588"]
[BlackElo "2737"]
[TimeControl "180+1"]
[EndTime "11:15:56 PST"]
[Termination "Game drawn by repetition"]

1. d4 {[%clk 0:03:00.9]} 1... d5 {[%clk 0:03:00.1]} 2. Nf3 {[%clk 0:03:00.4]}
2... c6 {[%clk 0:03:00.5]} 3. c4 {[%clk 0:03:00.1]} 3... Nf6 {[%clk 0:03:01.4]}
4. Qc2 {[%clk 0:02:49.8]} 4... g6 {[%clk 0:03:00.4]} 5. g3 {[%clk 0:02:49.4]}
5... Bg7 {[%clk 0:03:00.6]} 6. Bg2 {[%clk 0:02:49.9]} 6... O-O {[%clk
0:03:01.1]} 7. O-O {[%clk 0:02:50.4]} 7... Nbd7 {[%clk 0:03:01.1]} 8. b3 {[%clk
0:02:46.3]} 8... Ne4 {[%clk 0:03:00.8]} 9. Bb2 {[%clk 0:02:46]} 9... e6 {[%clk
0:03:00.8]} 10. Nbd2 {[%clk 0:02:44]} 10... f5 {[%clk 0:03:00.6]} 11. Ne5 {[%clk
0:02:42.7]} 11... Nxe5 {[%clk 0:03:00.2]} 12. dxe5 {[%clk 0:02:41.8]} 12... Bd7
{[%clk 0:03:00.6]} 13. Nf3 {[%clk 0:02:36.9]} 13... g5 {[%clk 0:02:59.6]} 14.
Rad1 {[%clk 0:02:29.8]} 14... g4 {[%clk 0:02:58.3]} 15. Ne1 {[%clk 0:02:10.7]}
15... Rc8 {[%clk 0:02:53.7]} 16. Nd3 {[%clk 0:02:10.1]} 16... h5 {[%clk
0:02:51.7]} 17. Nf4 {[%clk 0:02:02.5]} 17... Qg5 {[%clk 0:02:50]} 18. f3 {[%clk
0:01:50.9]} 18... Nc5 {[%clk 0:02:38.3]} 19. b4 {[%clk 0:01:29]} 19... Na6
{[%clk 0:02:36]} 20. a3 {[%clk 0:01:27.9]} 20... h4 {[%clk 0:02:35.1]} 21. fxg4
{[%clk 0:01:22.9]} 21... Qxg4 {[%clk 0:02:33.4]} 22. Qd3 {[%clk 0:01:07.5]}
22... Rf7 {[%clk 0:02:22.4]} 23. Qf3 {[%clk 0:01:07.2]} 23... Qxf3 {[%clk
0:02:19.9]} 24. Bxf3 {[%clk 0:01:00.3]} 24... hxg3 {[%clk 0:02:19.5]} 25. hxg3
{[%clk 0:01:01.2]} 25... dxc4 {[%clk 0:02:20.3]} 26. Bh5 {[%clk 0:01:00.9]}
26... Re7 {[%clk 0:02:16.6]} 27. Ng6 {[%clk 0:01:00.8]} 27... Rf7 {[%clk
0:02:16.9]} 28. Nf4 {[%clk 0:00:58.5]} 28... Re7 {[%clk 0:02:17]} 29. Ng6 {[%clk
0:00:51.2]} 29... Rf7 {[%clk 0:02:15.7]} 30. Nf4 {[%clk 0:00:34.6]} 1/2-1/2

[Event "*** Titled Tuesday Blitz"]
[Site "Chess.com"]
[Date "2021.03.02"]
[Round "7"]
[White "FMOlexandrProhorov"]
[Black "HanSchut"]
[Result "0-1"]
[WhiteElo "2095"]
[BlackElo "2229"]
[TimeControl "180+1"]
[EndTime "11:16:02 PST"]
[Termination "HanSchut won by resignation"]

1. e4 {[%clk 0:03:00.9]} 1... c5 {[%clk 0:02:59.5]} 2. c3 {[%clk 0:03:00.2]}
2... g6 {[%clk 0:02:59.2]} 3. d4 {[%clk 0:02:59.8]} 3... cxd4 {[%clk 0:03:00.1]}
4. cxd4 {[%clk 0:03:00.5]} 4... d5 {[%clk 0:02:59.9]} 5. e5 {[%clk 0:02:58.7]}
5... Nc6 {[%clk 0:03:00.1]} 6. Nf3 {[%clk 0:02:57.8]} 6... Bg4 {[%clk
0:02:59.4]} 7. Nbd2 {[%clk 0:02:57.6]} 7... Nh6 {[%clk 0:02:59.1]} 8. h3 {[%clk
0:02:57.4]} 8... Bxf3 {[%clk 0:02:58.9]} 9. Nxf3 {[%clk 0:02:57.3]} 9... e6
{[%clk 0:02:56.6]} 10. Be3 {[%clk 0:02:48.5]} 10... Nf5 {[%clk 0:02:56.4]} 11.
Qb3 {[%clk 0:02:44.6]} 11... Nxe3 {[%clk 0:02:54]} 12. fxe3 {[%clk 0:02:43.8]}
12... Qd7 {[%clk 0:02:49.6]} 13. Bb5 {[%clk 0:02:41.3]} 13... a6 {[%clk
0:02:45.3]} 14. Bxc6 {[%clk 0:02:38.8]} 14... Qxc6 {[%clk 0:02:44.9]} 15. O-O
{[%clk 0:02:38.4]} 15... Rc8 {[%clk 0:02:43.8]} 16. Ng5 {[%clk 0:02:34.7]} 16...
Rc7 {[%clk 0:02:39.1]} 17. Rac1 {[%clk 0:02:19.2]} 17... Qxc1 {[%clk 0:02:38.3]}
18. Rxc1 {[%clk 0:02:19.4]} 18... Rxc1+ {[%clk 0:02:39]} 19. Kh2 {[%clk
0:02:20.1]} 19... Bh6 {[%clk 0:02:25.9]} 20. Nf3 {[%clk 0:01:53.4]} 20... O-O
{[%clk 0:02:22.2]} 21. Qxb7 {[%clk 0:01:36.4]} 21... Bxe3 {[%clk 0:02:16.8]} 22.
Kg3 {[%clk 0:01:35.9]} 22... Rc2 {[%clk 0:01:49.6]} 23. Qxa6 {[%clk 0:01:32.9]}
23... Rxb2 {[%clk 0:01:44.3]} 24. a4 {[%clk 0:01:32.7]} 24... h5 {[%clk
0:01:43.3]} 25. a5 {[%clk 0:01:31.7]} 25... Bf2+ {[%clk 0:01:38.2]} 26. Kh2
{[%clk 0:01:31.1]} 26... h4 {[%clk 0:01:37.5]} 27. Qd3 {[%clk 0:01:26.2]} 27...
Bg3+ {[%clk 0:01:32.7]} 28. Kg1 {[%clk 0:01:21.5]} 28... Rc8 {[%clk 0:01:30.9]}
0-1

[Event "*** Titled Tuesday Blitz"]
[Site "Chess.com"]
[Date "2021.03.02"]
[Round "7"]
[White "Mazetovic"]
[Black "Leo_C"]
[Result "0-1"]
[WhiteElo "2689"]
[BlackElo "2444"]
[TimeControl "180+1"]
[EndTime "11:16:04 PST"]
[Termination "Leo_C won by resignation"]

1. e4 {[%clk 0:03:00.3]} 1... c6 {[%clk 0:03:00.2]} 2. d4 {[%clk 0:02:59.7]}
2... d5 {[%clk 0:03:00.2]} 3. e5 {[%clk 0:02:57.4]} 3... c5 {[%clk 0:02:59.9]}
4. Nf3 {[%clk 0:02:51.5]} 4... cxd4 {[%clk 0:02:58.8]} 5. Nxd4 {[%clk
0:02:42.2]} 5... e6 {[%clk 0:02:53.9]} 6. c4 {[%clk 0:02:41.5]} 6... Nc6 {[%clk
0:02:53.3]} 7. Nc3 {[%clk 0:02:36.8]} 7... Bc5 {[%clk 0:02:43.5]} 8. Nxc6 {[%clk
0:02:33.6]} 8... bxc6 {[%clk 0:02:42.3]} 9. Qa4 {[%clk 0:02:33.8]} 9... Bd7
{[%clk 0:02:09.7]} 10. Be2 {[%clk 0:02:17.4]} 10... Ne7 {[%clk 0:02:07.2]} 11.
O-O {[%clk 0:02:16.9]} 11... Ng6 {[%clk 0:02:07]} 12. Re1 {[%clk 0:01:50.9]}
12... O-O {[%clk 0:01:50.3]} 13. Bf1 {[%clk 0:01:50.1]} 13... Qc7 {[%clk
0:01:16.2]} 14. Qc2 {[%clk 0:01:14.8]} 14... Nxe5 {[%clk 0:01:11]} 15. Na4
{[%clk 0:01:11.3]} 15... Be7 {[%clk 0:01:01.9]} 16. Bf4 {[%clk 0:01:08.8]} 16...
Nf3+ {[%clk 0:00:59.6]} 17. gxf3 {[%clk 0:01:07.8]} 17... Qxf4 {[%clk
0:01:00.1]} 0-1

[Event "*** Titled Tuesday Blitz"]
[Site "Chess.com"]
[Date "2021.03.02"]
[Round "7"]
[White "anskam"]
[Black "FMLorneTwitch"]
[Result "0-1"]
[WhiteElo "1778"]
[BlackElo "2327"]
[TimeControl "180+1"]
[EndTime "11:16:05 PST"]
[Termination "FMLorneTwitch won on time"]

1. e4 {[%clk 0:00:49.9]} 1... d5 {[%clk 0:02:57.6]} 2. exd5 {[%clk 0:00:48.9]}
2... Qxd5 {[%clk 0:02:58.5]} 3. d4 {[%clk 0:00:48.1]} 3... Nf6 {[%clk
0:02:57.8]} 4. c4 {[%clk 0:00:40.2]} 4... Qd8 {[%clk 0:02:55.4]} 5. Nf3 {[%clk
0:00:38.8]} 5... Bg4 {[%clk 0:02:53.6]} 6. Be3 {[%clk 0:00:36.1]} 6... e6 {[%clk
0:02:52]} 7. Be2 {[%clk 0:00:36.2]} 7... Be7 {[%clk 0:02:48.7]} 8. O-O {[%clk
0:00:35]} 8... O-O {[%clk 0:02:49.2]} 9. Qb3 {[%clk 0:00:33.9]} 9... b6 {[%clk
0:02:45.3]} 10. Nbd2 {[%clk 0:00:33]} 10... Nbd7 {[%clk 0:02:44.5]} 11. h3
{[%clk 0:00:31.3]} 11... Bh5 {[%clk 0:02:42.6]} 12. g4 {[%clk 0:00:30.8]} 12...
Bg6 {[%clk 0:02:41.9]} 13. Nh4 {[%clk 0:00:30.9]} 13... c5 {[%clk 0:02:39]} 14.
Nxg6 {[%clk 0:00:29.9]} 14... hxg6 {[%clk 0:02:39.9]} 15. dxc5 {[%clk
0:00:25.8]} 15... Nxc5 {[%clk 0:02:38.8]} 16. Bf3 {[%clk 0:00:23.6]} 16... Nxb3
{[%clk 0:02:37.2]} 17. Nxb3 {[%clk 0:00:17.5]} 17... Rc8 {[%clk 0:02:36.4]} 18.
Rad1 {[%clk 0:00:16.6]} 18... Qc7 {[%clk 0:02:36.4]} 19. Rc1 {[%clk 0:00:15]}
19... Bc5 {[%clk 0:02:35.8]} 20. Nxc5 {[%clk 0:00:13.3]} 20... bxc5 {[%clk
0:02:36.7]} 21. Rfd1 {[%clk 0:00:11.9]} 21... Rfd8 {[%clk 0:02:36.9]} 22. Kg2
{[%clk 0:00:09.2]} 22... e5 {[%clk 0:02:34.6]} 23. Rd2 {[%clk 0:00:06.3]} 23...
e4 {[%clk 0:02:33.6]} 24. Be2 {[%clk 0:00:04.5]} 24... Rxd2 {[%clk 0:02:33.2]}
25. Bxd2 {[%clk 0:00:03.8]} 25... Rd8 {[%clk 0:02:34.1]} 26. Be3 {[%clk
0:00:02.3]} 26... Nd7 {[%clk 0:02:32.6]} 27. Rd1 {[%clk 0:00:01.5]} 27... Ne5
{[%clk 0:02:32.3]} 0-1

[Event "*** Titled Tuesday Blitz"]
[Site "Chess.com"]
[Date "2021.03.02"]
[Round "7"]
[White "lucasmito"]
[Black "urutodo"]
[Result "1-0"]
[WhiteElo "2506"]
[BlackElo "2297"]
[TimeControl "180+1"]
[EndTime "11:16:06 PST"]
[Termination "lucasmito won by resignation"]

1. e4 {[%clk 0:03:00.2]} 1... c6 {[%clk 0:03:00.5]} 2. d4 {[%clk 0:02:56.7]}
2... d5 {[%clk 0:03:01.4]} 3. Nc3 {[%clk 0:02:56.2]} 3... dxe4 {[%clk
0:03:01.5]} 4. Nxe4 {[%clk 0:02:57]} 4... Nf6 {[%clk 0:03:02.2]} 5. Nxf6+ {[%clk
0:02:57.2]} 5... exf6 {[%clk 0:03:03.1]} 6. c3 {[%clk 0:02:55.2]} 6... Bd6
{[%clk 0:03:04]} 7. Bd3 {[%clk 0:02:54.9]} 7... Be6 {[%clk 0:03:03.9]} 8. Qc2
{[%clk 0:02:55.8]} 8... h6 {[%clk 0:03:03.6]} 9. Ne2 {[%clk 0:02:56.7]} 9... Qc7
{[%clk 0:03:03.7]} 10. Be3 {[%clk 0:02:56.8]} 10... Nd7 {[%clk 0:03:03.3]} 11.
O-O-O {[%clk 0:02:57.2]} 11... b5 {[%clk 0:03:03.8]} 12. Kb1 {[%clk 0:02:50.9]}
12... Nb6 {[%clk 0:03:03.6]} 13. Rhe1 {[%clk 0:02:45.3]} 13... Nc4 {[%clk
0:03:01.7]} 14. Bc1 {[%clk 0:02:42.8]} 14... Qa5 {[%clk 0:02:57.4]} 15. d5
{[%clk 0:02:38.2]} 15... cxd5 {[%clk 0:02:47.6]} 16. Nd4 {[%clk 0:02:38.2]}
16... O-O {[%clk 0:02:18.9]} 17. Nxe6 {[%clk 0:02:27.3]} 17... fxe6 {[%clk
0:02:19.8]} 18. Rxe6 {[%clk 0:02:27.7]} 18... Rae8 {[%clk 0:01:59.3]} 19. Bxc4
{[%clk 0:02:27.5]} 19... Rxe6 {[%clk 0:01:48.2]} 20. Bxd5 {[%clk 0:02:26.7]}
20... Re8 {[%clk 0:01:44.1]} 21. Re1 {[%clk 0:02:26.3]} 21... Kf7 {[%clk
0:01:13.7]} 22. Qb3 {[%clk 0:02:25.3]} 22... Be5 {[%clk 0:00:24.9]} 23. f4
{[%clk 0:02:23.8]} 23... Qc7 {[%clk 0:00:12.7]} 24. fxe5 {[%clk 0:02:22.8]}
24... fxe5 {[%clk 0:00:13.6]} 25. Bxe6+ {[%clk 0:02:22.1]} 25... Rxe6 {[%clk
0:00:13.9]} 26. Qxb5 {[%clk 0:02:22.6]} 26... e4 {[%clk 0:00:11.5]} 27. Qd5
{[%clk 0:02:22.3]} 27... Qe7 {[%clk 0:00:09]} 28. Rxe4 {[%clk 0:02:21.8]} 1-0

[Event "*** Titled Tuesday Blitz"]
[Site "Chess.com"]
[Date "2021.03.02"]
[Round "7"]
[White "LubovMarkelova"]
[Black "niki_2003"]
[Result "1-0"]
[WhiteElo "2211"]
[BlackElo "2006"]
[TimeControl "180+1"]
[EndTime "11:16:26 PST"]
[Termination "LubovMarkelova won by resignation"]

1. Nf3 {[%clk 0:02:59.2]} 1... d5 {[%clk 0:02:59.5]} 2. d4 {[%clk 0:02:57.6]}
2... e6 {[%clk 0:02:58.6]} 3. c4 {[%clk 0:02:58.5]} 3... Nf6 {[%clk 0:02:57.7]}
4. e3 {[%clk 0:02:59.4]} 4... Bd6 {[%clk 0:02:56.5]} 5. Bd3 {[%clk 0:02:53.2]}
5... c6 {[%clk 0:02:51.3]} 6. O-O {[%clk 0:02:51.1]} 6... O-O {[%clk 0:02:49.3]}
7. b3 {[%clk 0:02:51.7]} 7... Nbd7 {[%clk 0:02:48.1]} 8. Bb2 {[%clk 0:02:52.1]}
8... Re8 {[%clk 0:02:45.2]} 9. Ne5 {[%clk 0:02:51.6]} 9... Qc7 {[%clk
0:02:41.1]} 10. f4 {[%clk 0:02:50.9]} 10... c5 {[%clk 0:02:30.5]} 11. Nd2 {[%clk
0:02:46.6]} 11... a6 {[%clk 0:02:21.3]} 12. Ndf3 {[%clk 0:02:44.8]} 12... Be7
{[%clk 0:02:04.7]} 13. Ng5 {[%clk 0:02:42.8]} 13... cxd4 {[%clk 0:01:50.2]} 14.
exd4 {[%clk 0:02:38.7]} 14... Nxe5 {[%clk 0:01:41.1]} 15. fxe5 {[%clk
0:02:36.9]} 15... Ne4 {[%clk 0:01:24]} 16. Nxe4 {[%clk 0:02:35.6]} 16... dxe4
{[%clk 0:01:22.6]} 17. Bxe4 {[%clk 0:02:36.2]} 17... Rd8 {[%clk 0:01:22.5]} 18.
Qh5 {[%clk 0:02:31.7]} 18... g6 {[%clk 0:01:21.8]} 19. Qf3 {[%clk 0:02:27.1]}
19... Bf8 {[%clk 0:01:18.3]} 20. Rad1 {[%clk 0:02:25.6]} 20... Bg7 {[%clk
0:01:17.1]} 21. h4 {[%clk 0:02:10.5]} 21... Rb8 {[%clk 0:01:03.2]} 22. h5 {[%clk
0:02:09.8]} 22... Rf8 {[%clk 0:00:59]} 23. Ba3 {[%clk 0:02:06.8]} 23... Re8
{[%clk 0:00:55.1]} 24. Bd6 {[%clk 0:02:06.4]} 24... Qd7 {[%clk 0:00:34.6]} 25.
Bxb8 {[%clk 0:02:05.9]} 25... Rf8 {[%clk 0:00:32.1]} 26. Bd6 {[%clk 0:02:05.7]}
26... Rd8 {[%clk 0:00:17.1]} 27. c5 {[%clk 0:01:56.3]} 1-0